[Event "*** SCC Grand Prix: Titled Tuesday Blitz"]
[Site "Chess.com"]
[Date "2020.07.07"]
[Round "10"]
[White "TheBigBoss04"]
[Black "VincentKeymer"]
[Result "1-0"]
[WhiteElo "2778"]
[BlackElo "2881"]
[TimeControl "180+1"]
[EndTime "11:58:32 PDT"]
[Termination "TheBigBoss04 won on time"]

1. d4 {[%clk 0:03:00.9]} 1... Nf6 {[%clk 0:02:59.9]} 2. c4 {[%clk 0:03:00.7]}
2... e6 {[%clk 0:03:00.4]} 3. Nc3 {[%clk 0:03:00.9]} 3... Bb4 {[%clk 0:03:00.3]}
4. e3 {[%clk 0:03:00.7]} 4... O-O {[%clk 0:02:59.8]} 5. Bd2 {[%clk 0:03:01]}
5... b6 {[%clk 0:02:59.2]} 6. Nf3 {[%clk 0:03:00.1]} 6... Bb7 {[%clk 0:02:59.4]}
7. Rc1 {[%clk 0:02:59.2]} 7... d6 {[%clk 0:02:57.3]} 8. a3 {[%clk 0:02:57.2]}
8... Bxc3 {[%clk 0:02:57]} 9. Bxc3 {[%clk 0:02:57.9]} 9... Ne4 {[%clk
0:02:57.4]} 10. Be2 {[%clk 0:02:51.9]} 10... Nd7 {[%clk 0:02:57.1]} 11. O-O
{[%clk 0:02:47.3]} 11... f5 {[%clk 0:02:57]} 12. d5 {[%clk 0:02:46.6]} 12... e5
{[%clk 0:02:57]} 13. Nd2 {[%clk 0:02:42.2]} 13... Nxc3 {[%clk 0:02:54.7]} 14.
Rxc3 {[%clk 0:02:41.6]} 14... Bc8 {[%clk 0:02:51.3]} 15. b4 {[%clk 0:02:37.8]}
15... f4 {[%clk 0:02:51.2]} 16. e4 {[%clk 0:02:08.6]} 16... Qe8 {[%clk
0:02:27.7]} 17. Bg4 {[%clk 0:02:05.8]} 17... Nf6 {[%clk 0:02:07.9]} 18. Bxc8
{[%clk 0:02:05]} 18... Rxc8 {[%clk 0:02:08.8]} 19. c5 {[%clk 0:02:01.5]} 19...
Qb5 {[%clk 0:01:18.3]} 20. Qc2 {[%clk 0:01:53.3]} 20... Rcd8 {[%clk 0:01:17.5]}
21. Rb1 {[%clk 0:01:44]} 21... g5 {[%clk 0:01:14.3]} 22. cxd6 {[%clk 0:01:32.5]}
22... cxd6 {[%clk 0:01:13.5]} 23. Rc7 {[%clk 0:01:27.5]} 23... g4 {[%clk
0:01:02.7]} 24. Qc4 {[%clk 0:01:23.9]} 24... Qe8 {[%clk 0:00:54.4]} 25. Qd3
{[%clk 0:01:00.4]} 25... Kh8 {[%clk 0:00:38.7]} 26. Rbc1 {[%clk 0:00:57.4]}
26... f3 {[%clk 0:00:31.5]} 27. g3 {[%clk 0:00:53.1]} 27... Rf7 {[%clk
0:00:19.5]} 28. R1c6 {[%clk 0:00:43.2]} 28... Rxc7 {[%clk 0:00:16.3]} 29. Rxc7
{[%clk 0:00:44.1]} 29... Qh5 {[%clk 0:00:16.8]} 30. Qc4 {[%clk 0:00:38.1]} 30...
Qh3 {[%clk 0:00:12.2]} 31. Qf1 {[%clk 0:00:37]} 31... Qh6 {[%clk 0:00:12.6]} 32.
Qd3 {[%clk 0:00:32.1]} 32... a5 {[%clk 0:00:12.8]} 33. b5 {[%clk 0:00:31.1]}
33... Nd7 {[%clk 0:00:12.6]} 34. h4 {[%clk 0:00:18.2]} 34... Nc5 {[%clk
0:00:10.9]} 35. Qe3 {[%clk 0:00:17.6]} 35... Qg6 {[%clk 0:00:06.9]} 36. Rc6
{[%clk 0:00:14.9]} 36... Rb8 {[%clk 0:00:06.5]} 37. Kh2 {[%clk 0:00:13.1]} 37...
h6 {[%clk 0:00:06.1]} 38. Rc7 {[%clk 0:00:11.7]} 38... Qf6 {[%clk 0:00:05.8]}
39. Nc4 {[%clk 0:00:11]} 39... Qg6 {[%clk 0:00:04.4]} 40. Rc6 {[%clk 0:00:08.9]}
40... Nxe4 {[%clk 0:00:03.7]} 41. Nxb6 {[%clk 0:00:07.4]} 41... Nc5 {[%clk
0:00:01.3]} 42. Qxc5 {[%clk 0:00:07]} 42... Qb1 {[%clk 0:00:01.7]} 43. Rc8+
{[%clk 0:00:06.8]} 1-0

[Event "*** SCC Grand Prix: Titled Tuesday Blitz"]
[Site "Chess.com"]
[Date "2020.07.07"]
[Round "10"]
[White "ShimanovAlex"]
[Black "praveenb2002"]
[Result "0-1"]
[WhiteElo "2877"]
[BlackElo "2732"]
[TimeControl "180+1"]
[EndTime "11:58:32 PDT"]
[Termination "praveenb2002 won on time"]

1. e4 {[%clk 0:03:00.9]} 1... c6 {[%clk 0:02:58.3]} 2. Nf3 {[%clk 0:02:59.6]}
2... d5 {[%clk 0:02:59.2]} 3. d3 {[%clk 0:03:00.4]} 3... dxe4 {[%clk 0:02:53]}
4. dxe4 {[%clk 0:03:00.1]} 4... Qxd1+ {[%clk 0:02:53.9]} 5. Kxd1 {[%clk
0:03:00.8]} 5... Bg4 {[%clk 0:02:52.8]} 6. Be2 {[%clk 0:02:59.7]} 6... Nd7
{[%clk 0:02:52.3]} 7. Ne1 {[%clk 0:02:58.5]} 7... Bxe2+ {[%clk 0:02:40.5]} 8.
Kxe2 {[%clk 0:02:59.4]} 8... Ngf6 {[%clk 0:02:41]} 9. f3 {[%clk 0:02:50.2]} 9...
g6 {[%clk 0:02:30.1]} 10. Nd3 {[%clk 0:02:49.1]} 10... Bg7 {[%clk 0:02:30.2]}
11. a4 {[%clk 0:02:32.5]} 11... O-O {[%clk 0:02:30]} 12. Be3 {[%clk 0:02:31.4]}
12... Rfd8 {[%clk 0:02:29.3]} 13. Nd2 {[%clk 0:02:30.9]} 13... Ne8 {[%clk
0:02:20.4]} 14. Rhd1 {[%clk 0:02:28.6]} 14... Nd6 {[%clk 0:02:07.8]} 15. a5
{[%clk 0:02:27.2]} 15... c5 {[%clk 0:01:55.8]} 16. c3 {[%clk 0:02:25.7]} 16...
Rac8 {[%clk 0:01:54.2]} 17. Bf4 {[%clk 0:02:22.3]} 17... c4 {[%clk 0:01:25]} 18.
Nb4 {[%clk 0:02:20.9]} 18... Nb5 {[%clk 0:01:24.2]} 19. Nd5 {[%clk 0:01:54.6]}
19... Kf8 {[%clk 0:00:56.2]} 20. Bg5 {[%clk 0:01:51.8]} 20... Re8 {[%clk
0:00:50.2]} 21. Ne3 {[%clk 0:01:31.6]} 21... Ne5 {[%clk 0:00:47.7]} 22. Ra4
{[%clk 0:01:27.6]} 22... Nd6 {[%clk 0:00:41.2]} 23. Rb1 {[%clk 0:01:13.1]} 23...
b5 {[%clk 0:00:40.2]} 24. axb6 {[%clk 0:01:12]} 24... axb6 {[%clk 0:00:40.7]}
25. Bf4 {[%clk 0:01:12.2]} 25... b5 {[%clk 0:00:38.3]} 26. Ra6 {[%clk
0:01:10.4]} 26... Ra8 {[%clk 0:00:23.9]} 27. Rba1 {[%clk 0:01:07.6]} 27... Rxa6
{[%clk 0:00:23.4]} 28. Rxa6 {[%clk 0:01:08.1]} 28... Rb8 {[%clk 0:00:21.8]} 29.
Nd5 {[%clk 0:00:59]} 29... Ke8 {[%clk 0:00:21.3]} 30. Nb4 {[%clk 0:00:51.9]}
30... Rc8 {[%clk 0:00:17.8]} 31. g3 {[%clk 0:00:48.5]} 31... Kd7 {[%clk
0:00:17.3]} 32. Bxe5 {[%clk 0:00:47.4]} 32... Bxe5 {[%clk 0:00:17.1]} 33. f4
{[%clk 0:00:47.9]} 33... Bg7 {[%clk 0:00:16.8]} 34. e5 {[%clk 0:00:20.1]} 34...
Nb7 {[%clk 0:00:15.5]} 35. Ne4 {[%clk 0:00:19.2]} 35... e6 {[%clk 0:00:14.1]}
36. Ra7 {[%clk 0:00:06.4]} 36... Rc7 {[%clk 0:00:12.6]} 37. Na6 {[%clk
0:00:07.3]} 37... Bf8 {[%clk 0:00:10.2]} 38. Nxc7 {[%clk 0:00:07.4]} 38... Kxc7
{[%clk 0:00:11.1]} 0-1

[Event "*** SCC Grand Prix: Titled Tuesday Blitz"]
[Site "Chess.com"]
[Date "2020.07.07"]
[Round "10"]
[White "politeplayer"]
[Black "Alexsur1981"]
[Result "0-1"]
[WhiteElo "2246"]
[BlackElo "2539"]
[TimeControl "180+1"]
[EndTime "11:58:32 PDT"]
[Termination "Alexsur1981 won on time"]

1. e4 {[%clk 0:03:00.9]} 1... c5 {[%clk 0:02:58.2]} 2. d4 {[%clk 0:03:00.9]}
2... cxd4 {[%clk 0:02:56.2]} 3. c3 {[%clk 0:03:01.3]} 3... dxc3 {[%clk
0:02:42.9]} 4. Nxc3 {[%clk 0:03:01.1]} 4... Nc6 {[%clk 0:02:43.1]} 5. Bc4 {[%clk
0:03:00]} 5... e6 {[%clk 0:02:40.2]} 6. Nf3 {[%clk 0:02:59.5]} 6... d6 {[%clk
0:02:37.2]} 7. O-O {[%clk 0:02:59.6]} 7... a6 {[%clk 0:02:33.9]} 8. b4 {[%clk
0:02:44.4]} 8... b5 {[%clk 0:02:24.9]} 9. Bb3 {[%clk 0:02:36]} 9... Nxb4 {[%clk
0:02:23.6]} 10. Nd4 {[%clk 0:02:13.4]} 10... Bd7 {[%clk 0:02:14.8]} 11. f4
{[%clk 0:01:54.7]} 11... Be7 {[%clk 0:02:10.2]} 12. Qg4 {[%clk 0:01:38.1]} 12...
Bf6 {[%clk 0:01:45.7]} 13. e5 {[%clk 0:01:28.5]} 13... dxe5 {[%clk 0:01:38.5]}
14. fxe5 {[%clk 0:01:25.8]} 14... Bxe5 {[%clk 0:01:38.6]} 15. Ba3 {[%clk
0:01:01]} 15... Nc6 {[%clk 0:01:30]} 16. Nxe6 {[%clk 0:00:44.6]} 16... Bxe6
{[%clk 0:01:18.9]} 17. Bxe6 {[%clk 0:00:42.9]} 17... Qd4+ {[%clk 0:01:18.4]} 18.
Kh1 {[%clk 0:00:37.6]} 18... Qxg4 {[%clk 0:01:17.4]} 19. Bxg4 {[%clk 0:00:32.8]}
19... Bxc3 {[%clk 0:01:15.3]} 20. Bf3 {[%clk 0:00:20.7]} 20... Rc8 {[%clk
0:01:11.5]} 21. Rac1 {[%clk 0:00:20.1]} 21... b4 {[%clk 0:01:08.9]} 22. Bxc6+
{[%clk 0:00:19.9]} 22... Rxc6 {[%clk 0:01:08.2]} 23. Bxb4 {[%clk 0:00:19.8]}
23... Rf6 {[%clk 0:00:55.5]} 24. Bxc3 {[%clk 0:00:16.2]} 24... Rxf1+ {[%clk
0:00:52.4]} 25. Rxf1 {[%clk 0:00:15.6]} 25... f6 {[%clk 0:00:50]} 26. Re1+
{[%clk 0:00:15.3]} 26... Kf7 {[%clk 0:00:49.9]} 27. Bb4 {[%clk 0:00:14.9]} 27...
Nh6 {[%clk 0:00:48.5]} 28. Rd1 {[%clk 0:00:13.5]} 28... Re8 {[%clk 0:00:42.4]}
29. h3 {[%clk 0:00:11.2]} 29... Re6 {[%clk 0:00:37.8]} 30. Rd7+ {[%clk
0:00:10.3]} 30... Kg6 {[%clk 0:00:14]} 31. Kh2 {[%clk 0:00:09.8]} 31... Nf5
{[%clk 0:00:11.9]} 32. Rd3 {[%clk 0:00:07.4]} 32... Re4 {[%clk 0:00:10.4]} 33.
a3 {[%clk 0:00:07.1]} 33... Re3 {[%clk 0:00:10.6]} 34. Rd5 {[%clk 0:00:06]}
34... Re2 {[%clk 0:00:10.4]} 35. Ra5 {[%clk 0:00:05.1]} 35... Ne3 {[%clk
0:00:10.4]} 36. Rxa6 {[%clk 0:00:04.1]} 36... Rxg2+ {[%clk 0:00:10.6]} 37. Kh1
{[%clk 0:00:04.1]} 37... Ra2 {[%clk 0:00:10.5]} 38. a4 {[%clk 0:00:04]} 38...
Nf5 {[%clk 0:00:09.8]} 39. a5 {[%clk 0:00:02.7]} 39... Nd4 {[%clk 0:00:09.9]}
40. Rb6 {[%clk 0:00:02.2]} 40... Kg5 {[%clk 0:00:08.5]} 41. a6 {[%clk
0:00:01.7]} 41... g6 {[%clk 0:00:08.6]} 0-1

[Event "*** SCC Grand Prix: Titled Tuesday Blitz"]
[Site "Chess.com"]
[Date "2020.07.07"]
[Round "10"]
[White "Margarita2907"]
[Black "AlanTate"]
[Result "1-0"]
[WhiteElo "2104"]
[BlackElo "2127"]
[TimeControl "180+1"]
[EndTime "11:58:32 PDT"]
[Termination "Margarita2907 won on time"]

1. e4 {[%clk 0:03:00.9]} 1... g6 {[%clk 0:02:59.3]} 2. d4 {[%clk 0:03:00]} 2...
Bg7 {[%clk 0:02:59.9]} 3. Nf3 {[%clk 0:02:58.4]} 3... d6 {[%clk 0:03:00.4]} 4.
c3 {[%clk 0:02:58.6]} 4... Nf6 {[%clk 0:03:00.6]} 5. Bd3 {[%clk 0:02:58.4]} 5...
O-O {[%clk 0:03:01]} 6. O-O {[%clk 0:02:58.3]} 6... c5 {[%clk 0:03:01.5]} 7.
Nbd2 {[%clk 0:02:58.2]} 7... Qc7 {[%clk 0:02:48]} 8. a4 {[%clk 0:02:56.6]} 8...
cxd4 {[%clk 0:02:46]} 9. cxd4 {[%clk 0:02:55.5]} 9... Nc6 {[%clk 0:02:45.6]} 10.
Re1 {[%clk 0:02:52.1]} 10... Nb4 {[%clk 0:02:38.4]} 11. Bb1 {[%clk 0:02:50.4]}
11... Be6 {[%clk 0:02:05.2]} 12. d5 {[%clk 0:02:36.1]} 12... Bd7 {[%clk
0:02:05.4]} 13. Nb3 {[%clk 0:02:33.7]} 13... Rfc8 {[%clk 0:01:52.7]} 14. Nbd4
{[%clk 0:02:27.3]} 14... Ng4 {[%clk 0:01:34.1]} 15. Bd2 {[%clk 0:02:17.3]} 15...
a5 {[%clk 0:01:27]} 16. Bc3 {[%clk 0:02:15.9]} 16... Qb6 {[%clk 0:01:16.9]} 17.
h3 {[%clk 0:02:12.3]} 17... Ne5 {[%clk 0:01:14.9]} 18. Nxe5 {[%clk 0:01:51.3]}
18... Bxe5 {[%clk 0:01:14.4]} 19. Ne2 {[%clk 0:01:39.8]} 19... Bxc3 {[%clk
0:00:50.9]} 20. Nxc3 {[%clk 0:01:39.3]} 20... Rc4 {[%clk 0:00:46.7]} 21. Qe2
{[%clk 0:01:31.7]} 21... Rac8 {[%clk 0:00:44]} 22. e5 {[%clk 0:01:05.2]} 22...
Rf4 {[%clk 0:00:34.9]} 23. e6 {[%clk 0:01:00]} 23... fxe6 {[%clk 0:00:33.1]} 24.
dxe6 {[%clk 0:01:00]} 24... Bc6 {[%clk 0:00:20.2]} 25. Be4 {[%clk 0:00:56.5]}
25... Bxe4 {[%clk 0:00:11.4]} 26. Nxe4 {[%clk 0:00:56.3]} 26... Rc2 {[%clk
0:00:11.4]} 27. Qe3 {[%clk 0:00:56.3]} 27... Qxe3 {[%clk 0:00:10.7]} 28. Rxe3
{[%clk 0:00:53.9]} 28... d5 {[%clk 0:00:06.2]} 29. Nd6 {[%clk 0:00:30.1]} 29...
Rfxf2 {[%clk 0:00:05.5]} 30. Nxb7 {[%clk 0:00:29.3]} 30... Rxg2+ {[%clk
0:00:05.2]} 31. Kh1 {[%clk 0:00:29.4]} 31... Rh2+ {[%clk 0:00:04.8]} 32. Kg1
{[%clk 0:00:29.6]} 32... d4 {[%clk 0:00:04.2]} 33. Rg3 {[%clk 0:00:26.2]} 33...
Nd5 {[%clk 0:00:03.4]} 34. Nxa5 {[%clk 0:00:21.2]} 34... Ne3 {[%clk 0:00:01.8]}
35. Re1 {[%clk 0:00:16.9]} 35... Rxb2 {[%clk 0:00:01.6]} 36. Rc1 {[%clk
0:00:14.8]} 36... Nf5 {[%clk 0:00:01.5]} 37. Rg4 {[%clk 0:00:13.6]} 37... Rxh3
{[%clk 0:00:01.4]} 38. Nc4 {[%clk 0:00:09.9]} 1-0

[Event "*** SCC Grand Prix: Titled Tuesday Blitz"]
[Site "Chess.com"]
[Date "2020.07.07"]
[Round "10"]
[White "AldokhinIvan"]
[Black "AlexOstrovskiy"]
[Result "1-0"]
[WhiteElo "2548"]
[BlackElo "2640"]
[TimeControl "180+1"]
[EndTime "11:58:34 PDT"]
[Termination "AldokhinIvan won by resignation"]

1. e4 {[%clk 0:02:48.9]} 1... c6 {[%clk 0:02:59.9]} 2. Nc3 {[%clk 0:02:48.4]}
2... d5 {[%clk 0:03:00.8]} 3. Nf3 {[%clk 0:02:49.1]} 3... Bg4 {[%clk 0:02:50.2]}
4. Be2 {[%clk 0:02:48.9]} 4... dxe4 {[%clk 0:02:47.5]} 5. Nxe4 {[%clk
0:02:48.1]} 5... Nf6 {[%clk 0:02:48.1]} 6. Neg5 {[%clk 0:02:38.4]} 6... Nbd7
{[%clk 0:02:44.2]} 7. Nxf7 {[%clk 0:02:34.7]} 7... Kxf7 {[%clk 0:02:21.3]} 8.
Ng5+ {[%clk 0:02:33.8]} 8... Ke8 {[%clk 0:02:21.7]} 9. Bxg4 {[%clk 0:02:31.1]}
9... Nxg4 {[%clk 0:02:22.6]} 10. Qxg4 {[%clk 0:02:28.1]} 10... Nf6 {[%clk
0:02:18.6]} 11. Qh3 {[%clk 0:02:13.4]} 11... Qd7 {[%clk 0:02:14.3]} 12. Ne6
{[%clk 0:02:10]} 12... Kf7 {[%clk 0:02:10.5]} 13. Ng5+ {[%clk 0:02:01.6]} 13...
Ke8 {[%clk 0:02:09.5]} 14. Qb3 {[%clk 0:01:59.8]} 14... e5 {[%clk 0:01:58.8]}
15. O-O {[%clk 0:01:55.4]} 15... h6 {[%clk 0:01:58.9]} 16. Nf3 {[%clk
0:01:22.8]} 16... Bd6 {[%clk 0:01:58.5]} 17. d4 {[%clk 0:01:17.3]} 17... e4
{[%clk 0:01:20.1]} 18. Ne5 {[%clk 0:01:16]} 18... Qc7 {[%clk 0:01:20.3]} 19. Bf4
{[%clk 0:01:13.9]} 19... Nd5 {[%clk 0:01:16.8]} 20. Bg3 {[%clk 0:01:10.7]} 20...
Bxe5 {[%clk 0:00:59]} 21. Bxe5 {[%clk 0:01:08.7]} 21... Qd7 {[%clk 0:00:59.4]}
22. Rae1 {[%clk 0:01:02.2]} 22... Kf7 {[%clk 0:00:57.1]} 23. Rxe4 {[%clk
0:00:59.6]} 23... Rhf8 {[%clk 0:00:53.2]} 24. c4 {[%clk 0:00:56]} 24... Nb6
{[%clk 0:00:52.7]} 25. Qg3 {[%clk 0:00:49.2]} 25... Kg8 {[%clk 0:00:45.6]} 26.
Rg4 {[%clk 0:00:48.1]} 26... Rf7 {[%clk 0:00:45.5]} 27. b3 {[%clk 0:00:46.5]}
27... Re8 {[%clk 0:00:44.1]} 28. f4 {[%clk 0:00:46]} 28... Qe7 {[%clk
0:00:28.5]} 29. f5 {[%clk 0:00:35.4]} 29... Nd7 {[%clk 0:00:29]} 30. Re4 {[%clk
0:00:19]} 30... Qf8 {[%clk 0:00:29.1]} 31. Ree1 {[%clk 0:00:18]} 31... Nf6
{[%clk 0:00:15.7]} 32. Bd6 {[%clk 0:00:17.6]} 32... Rxe1 {[%clk 0:00:11.1]} 33.
Bxf8 {[%clk 0:00:17.4]} 33... Rxf1+ {[%clk 0:00:12]} 34. Kxf1 {[%clk 0:00:17.6]}
34... Rxf8 {[%clk 0:00:11.3]} 35. Kg1 {[%clk 0:00:18]} 35... Rf7 {[%clk
0:00:11.3]} 36. Qe5 {[%clk 0:00:18]} 36... Ng4 {[%clk 0:00:07.4]} 37. Qe8+
{[%clk 0:00:17]} 37... Rf8 {[%clk 0:00:07.1]} 38. Qe6+ {[%clk 0:00:17.6]} 38...
Kh8 {[%clk 0:00:05.4]} 39. h3 {[%clk 0:00:17.7]} 39... Nf6 {[%clk 0:00:05.5]}
40. g4 {[%clk 0:00:18]} 40... Re8 {[%clk 0:00:06.4]} 41. Qf7 {[%clk 0:00:17.6]}
41... Re1+ {[%clk 0:00:06.2]} 42. Kf2 {[%clk 0:00:17.8]} 42... Ra1 {[%clk
0:00:07.1]} 43. Kf3 {[%clk 0:00:14.2]} 43... Rxa2 {[%clk 0:00:07.4]} 44. h4
{[%clk 0:00:14.6]} 44... Rb2 {[%clk 0:00:05.6]} 45. g5 {[%clk 0:00:14.5]} 45...
hxg5 {[%clk 0:00:06.4]} 46. hxg5 {[%clk 0:00:14.4]} 46... Rxb3+ {[%clk
0:00:07.3]} 47. Kf4 {[%clk 0:00:14.4]} 47... Nh7 {[%clk 0:00:03.9]} 48. Qe8+
{[%clk 0:00:14]} 1-0

[Event "*** SCC Grand Prix: Titled Tuesday Blitz"]
[Site "Chess.com"]
[Date "2020.07.07"]
[Round "10"]
[White "Nemsko"]
[Black "isainz"]
[Result "1/2-1/2"]
[WhiteElo "2283"]
[BlackElo "2157"]
[TimeControl "180+1"]
[EndTime "11:58:34 PDT"]
[Termination "Game drawn by repetition"]

1. e4 {[%clk 0:03:00.9]} 1... c5 {[%clk 0:02:59.3]} 2. Nf3 {[%clk 0:02:58.5]}
2... Nc6 {[%clk 0:02:58.8]} 3. d4 {[%clk 0:02:59]} 3... cxd4 {[%clk 0:02:58.9]}
4. Nxd4 {[%clk 0:02:59.9]} 4... e5 {[%clk 0:02:59]} 5. Nb5 {[%clk 0:02:59.2]}
5... d6 {[%clk 0:02:58.7]} 6. N1c3 {[%clk 0:02:54]} 6... a6 {[%clk 0:02:58.7]}
7. Na3 {[%clk 0:02:54.4]} 7... b5 {[%clk 0:02:59.3]} 8. Nd5 {[%clk 0:02:54.6]}
8... Nge7 {[%clk 0:02:59.9]} 9. c4 {[%clk 0:02:50.6]} 9... Nd4 {[%clk
0:02:59.5]} 10. Be3 {[%clk 0:02:48.4]} 10... Nxd5 {[%clk 0:02:57.9]} 11. Bxd4
{[%clk 0:02:44]} 11... Nf6 {[%clk 0:02:43.4]} 12. Be3 {[%clk 0:02:36.1]} 12...
Nxe4 {[%clk 0:02:00.2]} 13. Qd5 {[%clk 0:02:13.6]} 13... Bf5 {[%clk 0:01:56]}
14. cxb5 {[%clk 0:02:09.6]} 14... Qa5+ {[%clk 0:01:47.7]} 15. Kd1 {[%clk
0:01:54]} 15... Qa4+ {[%clk 0:01:40.2]} 16. Ke1 {[%clk 0:01:19.3]} 16... Qb4+
{[%clk 0:01:31.3]} 17. Bd2 {[%clk 0:01:04.5]} 17... Nxd2 {[%clk 0:01:17.1]} 18.
Qxd2 {[%clk 0:01:05.4]} 18... d5 {[%clk 0:01:03.9]} 19. bxa6 {[%clk 0:00:55.3]}
19... Qe4+ {[%clk 0:00:59.8]} 20. Kd1 {[%clk 0:00:52.8]} 20... Bxa3 {[%clk
0:00:54]} 21. Bb5+ {[%clk 0:00:51.2]} 21... Bd7 {[%clk 0:00:46.9]} 22. Bxd7+
{[%clk 0:00:48.1]} 22... Kxd7 {[%clk 0:00:46.9]} 23. bxa3 {[%clk 0:00:47.3]}
23... Qxg2 {[%clk 0:00:42.8]} 24. Ke2 {[%clk 0:00:32.3]} 24... Qe4+ {[%clk
0:00:41.5]} 25. Qe3 {[%clk 0:00:32.2]} 25... Qxe3+ {[%clk 0:00:39.6]} 26. fxe3
{[%clk 0:00:30.3]} 26... Rxa6 {[%clk 0:00:39.6]} 27. Rhd1 {[%clk 0:00:30.6]}
27... Ke6 {[%clk 0:00:38.7]} 28. Rd3 {[%clk 0:00:29.8]} 28... Rha8 {[%clk
0:00:36.9]} 29. Rg1 {[%clk 0:00:29.2]} 29... g6 {[%clk 0:00:36.1]} 30. Rgd1
{[%clk 0:00:28.4]} 30... Rxa3 {[%clk 0:00:29.9]} 31. Rxd5 {[%clk 0:00:27.6]}
31... Rxa2+ {[%clk 0:00:30.1]} 32. Kf3 {[%clk 0:00:25.8]} 32... Rxh2 {[%clk
0:00:19]} 33. Rd6+ {[%clk 0:00:26.1]} 33... Kf5 {[%clk 0:00:18.7]} 34. e4+
{[%clk 0:00:22.7]} 34... Kg5 {[%clk 0:00:18.5]} 35. Rg1+ {[%clk 0:00:23.2]}
35... Kh6 {[%clk 0:00:18.4]} 36. Kg3 {[%clk 0:00:22.2]} 36... Rh5 {[%clk
0:00:16.9]} 37. Rf1 {[%clk 0:00:17.6]} 37... Ra3+ {[%clk 0:00:16.2]} 38. Kg2
{[%clk 0:00:17.1]} 38... Rg5+ {[%clk 0:00:15.5]} 39. Kh2 {[%clk 0:00:17.7]}
39... f5 {[%clk 0:00:10.8]} 40. exf5 {[%clk 0:00:17.1]} 40... Rag3 {[%clk
0:00:07.3]} 41. fxg6 {[%clk 0:00:15.2]} 41... Rg2+ {[%clk 0:00:06.6]} 42. Kh1
{[%clk 0:00:14.6]} 42... hxg6 {[%clk 0:00:06.8]} 43. Rf8 {[%clk 0:00:08]} 43...
R2g4 {[%clk 0:00:04.9]} 44. Rf2 {[%clk 0:00:06.4]} 44... Rg1+ {[%clk 0:00:02.9]}
45. Kh2 {[%clk 0:00:06.5]} 45... R1g4 {[%clk 0:00:03.1]} 46. Kh1 {[%clk
0:00:05.3]} 46... Rg1+ {[%clk 0:00:02.5]} 47. Kh2 {[%clk 0:00:05.7]} 47... R1g4
{[%clk 0:00:02.6]} 48. Kh1 {[%clk 0:00:06.2]} 1/2-1/2

[Event "*** SCC Grand Prix: Titled Tuesday Blitz"]
[Site "Chess.com"]
[Date "2020.07.07"]
[Round "10"]
[White "Sanan_Sjugirov"]
[Black "SahajGrover"]
[Result "1-0"]
[WhiteElo "2832"]
[BlackElo "2676"]
[TimeControl "180+1"]
[EndTime "11:58:37 PDT"]
[Termination "Sanan_Sjugirov won on time"]

1. d4 {[%clk 0:03:00.9]} 1... d5 {[%clk 0:02:58.6]} 2. c4 {[%clk 0:03:01.2]}
2... e6 {[%clk 0:02:59]} 3. Nf3 {[%clk 0:03:01.6]} 3... Nf6 {[%clk 0:02:59]} 4.
Nc3 {[%clk 0:03:01.5]} 4... a6 {[%clk 0:02:58.5]} 5. cxd5 {[%clk 0:03:00.6]}
5... exd5 {[%clk 0:02:58.8]} 6. Bg5 {[%clk 0:02:59.9]} 6... Be6 {[%clk
0:02:57.7]} 7. e3 {[%clk 0:02:59.6]} 7... Nbd7 {[%clk 0:02:57.4]} 8. Bd3 {[%clk
0:02:57]} 8... Bd6 {[%clk 0:02:56.1]} 9. O-O {[%clk 0:02:54.7]} 9... c6 {[%clk
0:02:55.7]} 10. Bf4 {[%clk 0:02:54.5]} 10... Qc7 {[%clk 0:02:54.2]} 11. Bxd6
{[%clk 0:02:53.5]} 11... Qxd6 {[%clk 0:02:55.1]} 12. h3 {[%clk 0:02:53.8]} 12...
O-O {[%clk 0:02:54]} 13. Rc1 {[%clk 0:02:48]} 13... g6 {[%clk 0:02:44.9]} 14. a3
{[%clk 0:02:46.5]} 14... a5 {[%clk 0:02:42]} 15. Qc2 {[%clk 0:02:43.5]} 15...
Rfe8 {[%clk 0:02:37.3]} 16. Na4 {[%clk 0:02:43.2]} 16... Nh5 {[%clk 0:02:31.9]}
17. Nc5 {[%clk 0:02:38.5]} 17... Nxc5 {[%clk 0:02:29.6]} 18. Qxc5 {[%clk
0:02:38.3]} 18... Qxc5 {[%clk 0:02:23.8]} 19. Rxc5 {[%clk 0:02:36.5]} 19... Ng7
{[%clk 0:02:23.7]} 20. Rfc1 {[%clk 0:02:32.9]} 20... Bf5 {[%clk 0:02:22.8]} 21.
Be2 {[%clk 0:02:31.7]} 21... Be4 {[%clk 0:01:44.3]} 22. Nd2 {[%clk 0:02:28.9]}
22... Bf5 {[%clk 0:01:43.7]} 23. R5c3 {[%clk 0:02:22.8]} 23... h5 {[%clk
0:01:22.3]} 24. Nb3 {[%clk 0:02:20.3]} 24... Re7 {[%clk 0:01:17.3]} 25. Nc5
{[%clk 0:02:18]} 25... h4 {[%clk 0:01:12.4]} 26. Bf1 {[%clk 0:02:15]} 26... Ne8
{[%clk 0:00:58.4]} 27. b4 {[%clk 0:01:59.7]} 27... Nd6 {[%clk 0:00:50.5]} 28.
bxa5 {[%clk 0:01:51.6]} 28... Rxa5 {[%clk 0:00:51.4]} 29. Rb3 {[%clk 0:01:51.7]}
29... b5 {[%clk 0:00:41.3]} 30. Rbc3 {[%clk 0:01:34.1]} 30... Rea7 {[%clk
0:00:30.6]} 31. Nb3 {[%clk 0:01:28.8]} 31... Rxa3 {[%clk 0:00:30.3]} 32. Rxc6
{[%clk 0:01:29.4]} 32... Rxb3 {[%clk 0:00:24.7]} 33. Rxd6 {[%clk 0:01:29.5]}
33... Ra2 {[%clk 0:00:24.1]} 34. Rxd5 {[%clk 0:01:24.1]} 34... Rbb2 {[%clk
0:00:22.5]} 35. f3 {[%clk 0:00:59.5]} 35... b4 {[%clk 0:00:12.7]} 36. e4 {[%clk
0:00:57]} 36... Be6 {[%clk 0:00:07.3]} 37. Rd8+ {[%clk 0:00:57]} 37... Kg7
{[%clk 0:00:07.7]} 38. d5 {[%clk 0:00:57.4]} 38... Rd2 {[%clk 0:00:08.3]} 39.
Rb8 {[%clk 0:00:50.1]} 39... Bd7 {[%clk 0:00:06.2]} 40. Rxb4 {[%clk 0:00:49.6]}
40... Kf6 {[%clk 0:00:05.4]} 41. Rb6+ {[%clk 0:00:46.7]} 41... Ke5 {[%clk
0:00:05.3]} 42. Rb7 {[%clk 0:00:45.6]} 42... Ba4 {[%clk 0:00:02.8]} 43. Rxf7
{[%clk 0:00:44.1]} 43... Bb5 {[%clk 0:00:03.2]} 44. Bxb5 {[%clk 0:00:29.5]}
44... Rxg2+ {[%clk 0:00:03]} 45. Kf1 {[%clk 0:00:30]} 45... Rh2 {[%clk
0:00:03.5]} 46. Ke1 {[%clk 0:00:29.1]} 46... Kd4 {[%clk 0:00:04]} 47. Bf1 {[%clk
0:00:26.7]} 1-0